lending/lending_fUSD_20260124
["ID","MTS","AMOUNT","RATE_DAILY","PERIOD"]
[403220046,1769269845319,-800.0,0.0001726,2]
[403220047,1769269845328,-800.0,0.0001726,2]
[403220048,1769269845336,-800.0,0.0001726,2]
[403220049,1769269845345,-800.0,0.0001726,2]
[403220050,1769269845354,-800.0,0.0001726,2]
[403220051,1769269845363,-800.0,0.0001726,2]
[403220052,1769269845372,-800.0,0.0001726,2]
[403220053,1769269845383,-800.0,0.0001726,2]
[403220054,1769269845392,-800.0,0.0001726,2]
[403220055,1769269845402,-800.0,0.0001726,2]
[403220056,1769269845411,-800.0,0.0001726,2]
[403220057,1769269845420,-800.0,0.0001726,2]
[403220058,1769269845430,-800.0,0.0001726,2]
[403220059,1769269845439,-800.0,0.0001726,2]
[403220060,1769269845448,-800.0,0.0001726,2]
[403220061,1769269845457,-800.0,0.0001726,2]
[403220062,1769269845466,-800.0,0.0001726,2]
[403220063,1769269845475,-800.0,0.0001726,2]
[403220064,1769269845484,-800.0,0.0001726,2]
[403220065,1769269845493,-800.0,0.0001726,2]
[403220066,1769269845502,-800.0,0.0001726,2]
[403220067,1769269845511,-800.0,0.0001726,2]
[403220068,1769269845520,-800.0,0.0001726,2]
[403220069,1769269845530,-800.0,0.0001726,2]
[403220070,1769269845539,-800.0,0.0001726,2]
[403220071,1769269845548,-800.0,0.0001726,2]
[403220072,1769269845557,-452.0,0.0001726,2]
[403220073,1769269845566,-500.0,0.0001726,2]
[403220074,1769269845575,-617.0,0.0001726,2]
[403220075,1769269845585,-200.0,0.0001726,2]
[403220076,1769269845595,-200.0,0.0001726,2]
[403220077,1769269845604,-200.0,0.0001726,2]
[403220078,1769269845615,-200.0,0.0001726,2]
[403220079,1769269845625,-200.0,0.0001726,2]
[403220080,1769269845634,-200.0,0.0001726,2]
[403220081,1769269845645,-200.0,0.0001726,2]
[403220082,1769269845654,-200.0,0.0001726,2]
[403220083,1769269845663,-200.0,0.0001726,2]
[403220084,1769269845672,-200.0,0.0001726,2]
[403220085,1769269845682,-200.0,0.0001726,2]
[403220086,1769269845691,-200.0,0.0001726,2]
[403220087,1769269845700,-200.0,0.0001726,2]
[403220088,1769269845709,-200.0,0.0001726,2]
[403220089,1769269845718,-200.0,0.0001726,2]
[403220090,1769269845727,-200.0,0.0001726,2]
[403220091,1769269845736,-200.0,0.0001726,2]
[403220092,1769269845745,-200.0,0.0001726,2]
[403220093,1769269845754,-200.0,0.0001726,2]
[403220094,1769269845763,-200.0,0.0001726,2]
[403220095,1769269845772,-200.0,0.0001726,2]
[403220096,1769269845781,-200.0,0.0001726,2]
[403220097,1769269845791,-200.0,0.0001726,2]
[403220098,1769269845800,-200.0,0.0001726,2]
[403220099,1769269845809,-200.0,0.0001726,2]
[403220100,1769269845818,-200.0,0.0001726,2]
[403220101,1769269845827,-200.0,0.0001726,2]
[403220102,1769269845836,-200.0,0.0001726,2]
[403220103,1769269845846,-200.0,0.0001726,2]
[403220104,1769269845855,-200.0,0.0001726,2]
[403220105,1769269845864,-200.0,0.0001726,2]
[403220106,1769269845873,-200.0,0.0001726,2]
[403220107,1769269845883,-200.0,0.0001726,2]
[403220108,1769269845894,-200.0,0.0001726,2]
[403220109,1769269845903,-200.0,0.0001726,2]
[403220110,1769269845912,-200.0,0.0001726,2]
[403220111,1769269845922,-188.0,0.0001726,2]
[403220112,1769269845931,-159.59843399,0.0001728,2]
[403220113,1769269845942,-2368.5,0.00017295,2]
[403220115,1769269845951,-1062.33638913,0.00017347,2]
[403220117,1769269845961,-217.15233878,0.00017347,2]
[403220118,1769269845971,-450.79259662,0.00017357,2]
[403220119,1769269845980,-200.0,0.00017364,2]
[403220120,1769269845989,-200.0,0.00017381,2]
[403220121,1769269845998,-194.93473072,0.00017384,2]
[403220122,1769269846007,-2000.0,0.000174,2]
[403220124,1769269846017,-2368.5,0.00017412,2]
[403220125,1769269846026,-500.0,0.00017426,2]
[403220126,1769269846035,-749.41,0.00017426,2]
[403220127,1769269846043,-500.0,0.00017427,2]
[403220128,1769269846053,-551.95368049,0.00017427,2]
[403220129,1769269846062,-500.0,0.00017427,2]
[403220130,1769269846071,-500.0,0.00017427,2]
[403220131,1769269846080,-637.33762737,0.00017427,2]
[403220132,1769269846089,-151.47,0.00017452,2]
[403220133,1769269846098,-150.0,0.00017452,2]
[403220134,1769269846107,-5888.95973662,0.00017454,5]
[403220135,1769269846116,-450.79259662,0.00017493,2]
[403220136,1769269846127,-152.0,0.00017511,6]
[403220137,1769269846137,-2000.0,0.00017516,2]
[403220138,1769269846146,-1046.22489308,0.00017516,2]
[403220139,1769269846155,-2000.0,0.00017516,2]
[403220140,1769269846164,-2000.0,0.00017516,2]
[403220141,1769269846173,-2000.0,0.00017516,2]
[403220142,1769269846182,-2000.0,0.00017516,2]
[403220143,1769269846191,-1007.7084502,0.00017516,2]
[403220144,1769269846200,-2000.0,0.00017516,2]
[403220145,1769269846209,-2000.0,0.00017516,2]
[403220146,1769269846219,-2000.0,0.00017516,2]
[403220147,1769269846228,-2000.0,0.00017516,2]
[403220148,1769269846237,-1000.0,0.00017517,2]
[403220149,1769269846247,-2368.5,0.0001753,2]
[403220150,1769269846256,-150.42,0.00017534,2]
[403220151,1769269846265,-211.23,0.00017534,2]
[403220152,1769269846275,-500.0,0.00017534,2]
[403220153,1769269846284,-1262.73019669,0.00017534,2]
[403220154,1769269846293,-1000.0,0.00017534,2]
[403220155,1769269846302,-156.08,0.00017538,2]
[403220156,1769269846311,-867.75,0.00017539,2]
[403220157,1769269846321,-252.05994087,0.00017575,2]
[403220158,1769269846330,-194.88703005,0.00017615,2]
[403220159,1769269846553,-3648.0,0.00017619,2]
[403220160,1769269846563,-450.79259662,0.00017629,2]
[403220161,1769269846572,-5404.10438685,0.0001764,2]
[403220162,1769269846581,-194.93473072,0.00017642,2]
[403220163,1769269846590,-2368.5,0.00017647,2]
[403220165,1769269846600,-200.0,0.00017677,2]
[403220167,1769269846609,-836.0,0.0001768,2]
[403220169,1769269846618,-836.0,0.0001768,2]
[403220171,1769269846627,-151.3661,0.000177,2]
[403220172,1769269846637,-3662.0,0.000177,2]
[403220174,1769269846647,-3648.0,0.00017704,2]
[403220175,1769269846656,-1000.0,0.0001772,2]
[403220176,1769269846665,-1000.0,0.00017726,2]
[403220177,1769269846674,-1000.0,0.00017728,2]
[403220178,1769269846684,-1214.16676601,0.0001773,2]
[403220179,1769269846693,-929.63069455,0.0001773,2]
[403220180,1769269846702,-1000.0,0.00017733,2]
[403220181,1769269846711,-1000.0,0.0001774,2]
[403220182,1769269846721,-1000.0,0.00017741,2]
[403220183,1769269846730,-1000.0,0.00017742,2]
[403220184,1769269846739,-1000.0,0.00017743,2]
[403220185,1769269846750,-172.8753019,0.00017746,3]
[403220186,1769269846759,-1000.0,0.00017758,2]
[403220187,1769269846769,-1000.0,0.00017758,2]
[403220188,1769269846778,-450.79259662,0.00017764,2]
[403220189,1769269846787,-2368.5,0.00017765,2]
[403220190,1769269846796,-1000.0,0.0001777,2]
[403220191,1769269846807,-150.0,0.00017776,2]
[403220192,1769269846816,-150.0,0.00017794,2]
[403220193,1769269846826,-150.0,0.00017797,2]
[403220194,1769269846836,-1000.0,0.00017808,2]
[403220195,1769269846845,-1000.0,0.0001781,2]
[403220196,1769269846854,-867.75,0.00017813,2]
[403220197,1769269846864,-1000.0,0.00017814,2]
[403220198,1769269846873,-964.19225,0.0001782,2]
[403220199,1769269846882,-964.19226,0.0001782,2]
[403220200,1769269846894,-231.38369303,0.0001782,2]
[403220201,1769269846903,-1000.0,0.00017822,2]
[403220202,1769269846913,-5800.0,0.00017823,2]
[403220203,1769269846923,-43947.56453849,0.00017827,2]
[403220204,1769269846932,-96953.83922531,0.0001783,2]
[403220205,1769269846942,-250.0,0.0001783,2]
[403220206,1769269846952,-5800.0,0.00017832,2]
[403220207,1769269846962,-1000.0,0.00017835,2]
[403220208,1769269846971,-150.0,0.00017836,2]
[403220209,1769269846980,-150.0,0.00017836,2]
[403220210,1769269846990,-311.60217601,0.00017836,2]
[403220211,1769269847000,-5800.0,0.00017841,2]
[403220212,1769269847010,-25000.0,0.00017847,3]
[403220213,1769269847020,-5800.0,0.00017849,2]
[403220214,1769269847031,-200.0,0.00017855,2]
[403220215,1769269847040,-25000.0,0.00017856,3]
[403220216,1769269847050,-200.0,0.00017856,2]
[403220217,1769269847069,-5800.0,0.00017858,2]
[403220218,1769269847080,-1000.0,0.00017858,2]
[403220219,1769269847090,-200.0,0.00017858,2]
[403220220,1769269847100,-200.0,0.00017859,2]
[403220221,1769269847111,-25000.0,0.00017865,3]
[403220222,1769269847120,-5800.0,0.00017866,2]
[403220223,1769269847130,-152.734551,0.00017871,2]
[403220224,1769269847141,-25000.0,0.00017874,3]
[403220225,1769269847150,-5800.0,0.00017874,2]
[403220226,1769269847160,-150.0,0.0001788,2]
[403220227,1769269847170,-150.0,0.00017881,2]
[403220228,1769269847180,-2368.5,0.00017882,2]
[403220229,1769269847190,-25000.0,0.00017882,3]
[403220230,1769269847200,-193.45440139,0.00017883,2]
[403220231,1769269847210,-5800.0,0.00017883,2]
[403220232,1769269847220,-150.0,0.00017883,2]
[403220233,1769269847230,-25000.0,0.00017891,3]
[403220234,1769269847240,-5800.0,0.00017891,2]
[403220235,1769269847252,-1000.0,0.00017895,2]
[403220236,1769269847262,-1101.64283553,0.00017895,2]
[403220237,1769269847271,-225.18697532,0.00017895,2]
[403220238,1769269847281,-749.41,0.00017899,2]
[403220239,1769269847291,-32941.4774,0.000179,2]
[403220240,1769269847300,-450.79259662,0.000179,2]
[403220241,1769269847310,-6902.7891,0.000179,2]
[403220242,1769269847320,-194.93473072,0.000179,2]
[403220243,1769269847330,-10000.0,0.000179,2]
[403220244,1769269847340,-25000.0,0.000179,3]
[403220245,1769269847350,-5800.0,0.000179,2]
[403220246,1769269847359,-489.86219045,0.000179,2]
[403220247,1769269847369,-190.80620809,0.000179,3]
[403220248,1769269847379,-549.64135156,0.000179,2]
[403220249,1769269847389,-9770.75467923,0.000179,2]
[403220250,1769269847398,-21653.55537339,0.000179,2]
[403220251,1769269847407,-13995.31137832,0.000179,2]
[403220252,1769269847417,-5480.0,0.000179,2]
[403220253,1769269847426,-150.0,0.00017927,2]
[403220254,1769269847436,-1000.0,0.00017947,2]
[403220255,1769269847446,-400.0,0.00017958,2]
[403220256,1769269847456,-469.17519756,0.00017958,2]
[403220257,1769269847465,-1000.0,0.00017964,2]
[403220258,1769269847475,-500.0,0.0001797,2]
[403220259,1769269847484,-1000.0,0.0001797,2]
[403220260,1769269847494,-500.0,0.0001797,2]
[403220261,1769269847505,-1000.0,0.0001797,2]
[403220262,1769269847518,-500.0,0.0001797,2]
[403220263,1769269847527,-1000.0,0.0001797,2]
[403220264,1769269847537,-500.0,0.0001797,2]
[403220265,1769269847547,-1000.0,0.0001797,2]
[403220266,1769269847556,-500.0,0.0001797,2]
[403220267,1769269847566,-1000.0,0.0001797,2]
[403220268,1769269847576,-500.0,0.0001797,2]
[403220269,1769269847587,-1000.0,0.0001797,2]
[403220270,1769269847597,-601.31337833,0.0001797,2]
[403220271,1769269847608,-1425.13914229,0.0001797,2]
[403220272,1769269847617,-15055.0,0.00017973,2]
[403220273,1769269847627,-500.0,0.00017973,2]
[403220274,1769269847636,-162.86883444,0.00017973,2]
[403220275,1769269847646,-500.0,0.00017973,2]
[403220276,1769269847656,-500.0,0.00017973,2]
[403220277,1769269847666,-500.0,0.00017973,2]
[403220278,1769269847675,-500.0,0.00017973,2]
[403220279,1769269847684,-500.0,0.00017973,2]
[403220280,1769269847694,-500.0,0.00017973,2]
[403220281,1769269847704,-500.0,0.00017973,2]
[403220282,1769269847714,-500.0,0.00017973,2]
[403220283,1769269847723,-150.0,0.00017973,2]
[403220284,1769269847733,-500.0,0.00017973,2]
[403220285,1769269847743,-500.0,0.00017973,2]
[403220286,1769269847752,-500.0,0.00017973,2]
[403220287,1769269847762,-500.0,0.00017973,2]
[403220288,1769269847771,-163.10376799,0.00017973,2]
[403220289,1769269847781,-500.0,0.00017973,2]
[403220290,1769269847790,-500.0,0.00017973,2]
[403220291,1769269847800,-300.0,0.00017973,2]
[403220292,1769269847812,-500.0,0.00017973,2]
[403220293,1769269847821,-500.0,0.00017973,2]
[403220294,1769269847831,-160.30101054,0.00017973,2]
[403220295,1769269847841,-500.0,0.00017973,2]
[403220296,1769269847850,-500.0,0.00017973,2]
[403220297,1769269847860,-163.215227,0.00017973,2]
[403220298,1769269847870,-521.52144255,0.00017973,2]
[403220299,1769269847880,-558.82608128,0.00017973,2]
[403220300,1769269847891,-500.0,0.00017973,2]
[403220301,1769269847904,-208.11665623,0.00017973,2]
[403220302,1769269847914,-161.29695591,0.00017973,2]
[403220303,1769269847924,-500.0,0.00017973,2]
[403220304,1769269847935,-500.0,0.00017973,2]
[403220305,1769269847944,-500.0,0.00017973,2]
[403220306,1769269847954,-512.1744801,0.00017973,2]
[403220307,1769269847963,-159.93585942,0.00017973,2]
[403220308,1769269847975,-160.05036115,0.00017973,2]
[403220309,1769269847985,-160.04998238,0.00017973,2]
[403220310,1769269847999,-160.05079201,0.00017973,2]
[403220311,1769269848008,-500.0,0.00017973,2]
[403220312,1769269848018,-573.18204786,0.00017973,2]
[403220313,1769269848028,-500.0,0.00017973,2]
[403220314,1769269848039,-500.0,0.00017973,2]
[403220315,1769269848048,-500.0,0.00017973,2]
[403220316,1769269848058,-500.0,0.00017973,2]
[403220317,1769269848068,-500.0,0.00017973,2]
[403220318,1769269848078,-500.0,0.00017973,2]
[403220319,1769269848088,-160.05160425,0.00017973,2]
[403220320,1769269848098,-180.05440168,0.00017973,2]
[403220321,1769269848108,-500.0,0.00017973,2]
[403220322,1769269848118,-157.31967869,0.00017973,2]
[403220323,1769269848128,-500.0,0.00017973,2]
[403220324,1769269848138,-160.04899722,0.00017973,2]
[403220325,1769269848147,-335.93123339,0.00017973,2]
[403220326,1769269848158,-160.95253726,0.00017973,2]
[403220327,1769269848168,-500.0,0.00017973,2]
[403220328,1769269848178,-333.14308792,0.00017973,2]
[403220329,1769269848188,-161.20666181,0.00017973,2]
[403220330,1769269848197,-160.03318119,0.00017973,2]
[403220331,1769269848207,-150.87644931,0.00017973,2]
[403220332,1769269848217,-500.0,0.00017973,2]
[403220333,1769269848226,-500.0,0.00017973,2]
[403220334,1769269848236,-500.0,0.00017973,2]
[403220335,1769269848246,-500.0,0.00017973,2]
[403220336,1769269848256,-336.33747242,0.00017973,2]
[403220337,1769269848266,-500.0,0.00017973,2]
[403220338,1769269848276,-500.0,0.00017973,2]
[403220339,1769269848286,-500.0,0.00017973,2]
[403220340,1769269848297,-500.0,0.00017973,2]
[403220341,1769269848308,-160.05242782,0.00017973,2]
[403220342,1769269848318,-158.06916035,0.00017973,2]
[403220343,1769269848328,-500.0,0.00017973,2]
[403220344,1769269848339,-500.0,0.00017973,2]
[403220345,1769269848350,-160.04994992,0.00017973,2]
[403220346,1769269848361,-500.0,0.00017973,2]
[403220347,1769269848371,-500.0,0.00017973,2]
[403220348,1769269848382,-160.03828545,0.00017973,2]
[403220349,1769269848392,-160.0507877,0.00017973,2]
[403220350,1769269848404,-500.0,0.00017973,2]
[403220351,1769269848414,-161.91357387,0.00017973,2]
[403220352,1769269848423,-308.89625283,0.00017973,2]
[403220353,1769269848433,-548.15607658,0.00017973,2]
[403220354,1769269848442,-485.5720463,0.00017973,2]
[403220355,1769269848453,-284.08136107,0.00017973,2]
[403220356,1769269848463,-169.51216753,0.00017973,2]
[403220357,1769269848472,-162.47485834,0.00017973,2]
[403220358,1769269848482,-511.74783648,0.00017973,2]
[403220359,1769269848491,-500.0,0.00017973,2]
[403220360,1769269848500,-500.0,0.00017973,2]
[403220361,1769269848510,-508.83270828,0.00017973,2]
[403220362,1769269848519,-166.43972344,0.00017973,2]
[403220363,1769269848529,-500.0,0.00017973,2]
[403220364,1769269848539,-500.0,0.00017973,2]
[403220365,1769269848548,-500.0,0.00017973,2]
[403220366,1769269848557,-500.0,0.00017973,2]
[403220367,1769269848567,-500.0,0.00017973,2]
[403220368,1769269848577,-500.0,0.00017973,2]
[403220369,1769269848587,-500.0,0.00017973,2]
[403220370,1769269848597,-500.0,0.00017973,2]
[403220371,1769269848609,-167.78129088,0.00017973,2]
[403220372,1769269848619,-161.24700646,0.00017973,2]
[403220373,1769269848628,-500.0,0.00017973,2]
[403220374,1769269848638,-165.72236604,0.00017973,2]
[403220375,1769269848647,-500.0,0.00017973,2]
[403220376,1769269848656,-500.0,0.00017973,2]
[403220377,1769269848666,-161.03754612,0.00017973,2]
[403220378,1769269848675,-500.0,0.00017973,2]
[403220379,1769269848686,-208.57012707,0.00017973,2]
[403220380,1769269848697,-500.0,0.00017973,2]
[403220381,1769269848707,-500.0,0.00017973,2]
[403220382,1769269848717,-500.0,0.00017973,2]
[403220383,1769269848727,-164.56853003,0.00017973,2]
[403220384,1769269848741,-410.92119628,0.00017973,2]
[403220385,1769269848750,-153.7074367,0.00017976,2]
[403220386,1769269848760,-1000.0,0.00017977,2]
[403220387,1769269848770,-500.0,0.00017982,2]
[403220388,1769269848780,-1185.90178612,0.0001799,2]
[403220389,1769269848789,-1185.90178612,0.0001799,2]
[403220390,1769269848799,-3648.0,0.00017991,2]
[403220391,1769269848808,-151.0,0.00017997,2]
[403220392,1769269848818,-150.0,0.00017999,2]
[403220393,1769269848828,-150.0,0.00017999,2]
[403220394,1769269848838,-156.86309582,0.00017999,2]
[403220395,1769269848848,-1102.07325121,0.00017999,5]
[403220396,1769269848858,-500.0,0.00017999,2]
[403220397,1769269848868,-500.0,0.00017999,2]
[403220398,1769269848878,-500.0,0.00017999,2]
[403220399,1769269848887,-413.71370939,0.00017999,2]
[403220400,1769269848901,-300.0,0.00017999,2]
[403220401,1769269848911,-300.0,0.00017999,2]
[403220402,1769269849041,-300.0,0.00017999,2]
[403220403,1769269849051,-300.0,0.00017999,2]
[403220404,1769269849060,-300.0,0.00017999,2]
[403220405,1769269849069,-300.0,0.00017999,2]
[403220406,1769269849078,-300.0,0.00017999,2]
[403220407,1769269849087,-749.41,0.00017999,2]
[403220408,1769269849096,-749.41,0.00017999,2]
[403220409,1769269849107,-749.41,0.00017999,2]
[403220410,1769269849116,-749.41,0.00017999,2]
[403220411,1769269849125,-749.41,0.00017999,2]
[403220412,1769269849135,-749.41,0.00017999,2]
[403220413,1769269849143,-749.41,0.00017999,2]
[403220414,1769269849152,-749.41,0.00017999,2]
[403220415,1769269849162,-749.41,0.00017999,2]
[403220416,1769269849171,-749.41,0.00017999,2]
[403220417,1769269849182,-749.41,0.00017999,2]
[403220418,1769269849191,-749.41,0.00017999,2]
[403220419,1769269849200,-749.41,0.00017999,2]
[403220420,1769269849212,-749.41,0.00017999,2]
[403220421,1769269849221,-749.41,0.00017999,2]
[403220422,1769269849230,-749.41,0.00017999,2]
[403220423,1769269849239,-749.41,0.00017999,2]
[403220424,1769269849248,-749.4552437,0.00017999,2]
[403220425,1769269849258,-150.0,0.00017999,2]
[403220426,1769269849269,-300.0,0.00017999,2]
[403220427,1769269849279,-300.0,0.00017999,2]
[403220428,1769269849288,-150.0,0.00017999,2]
[403220429,1769269849298,-4202593.10708823,0.00018,2]
[403220430,1769269849307,-1817632.94257955,0.00018,2]
[403220431,1769269849832,-501.75076313,0.00018,2]
[403220432,1769269849844,-35514.90000001,0.00018,2]
[403220433,1769269850842,-2540.80325562,0.00018,2]
[403220434,1769269852119,-957.33,0.00016438,2]
[403220435,1769269852128,-957.33,0.00016438,2]
[403220436,1769269852139,-957.33,0.00016438,2]
[403220437,1769269852148,-957.4341589,0.00016438,2]
[403220438,1769269852158,-9712.0779911,0.00018,2]
[403220439,1769269852211,-3848.68264906,0.00018,2]
[403220440,1769269853349,-390.81969188,0.00018,2]
[403220441,1769269853362,-14493.9079988,0.00018,2]
[403220442,1769269853375,-1084.9076978,0.00018,2]
[403220443,1769269855724,4634.54839768,0.00011474,2]
[403220444,1769269864776,-383.65677568,0.00011575,2]
[403220445,1769269864837,-216.85110539,0.00011575,2]
[403220446,1769269864903,-262.14784922,0.00011575,2]
[403220451,1769269944439,10000.01,0.00011475,2]
[403220452,1769269944497,10000.01,0.00011475,2]
[403220453,1769269944557,10000.01,0.00011475,2]
[403220454,1769269944613,10000.01,0.00011475,2]
[403220455,1769269944670,10000.01,0.00011475,2]
[403220456,1769269944726,10000.01,0.00011475,2]
[403220457,1769269944784,10000.01,0.00011475,2]
[403220458,1769269944842,10000.01,0.00011475,2]
[403220459,1769269944901,10000.01,0.00011475,2]
[403220460,1769269944965,10000.01,0.00011475,2]
[403220461,1769269946445,-417.63882727,0.00011475,2]
[403220462,1769269951236,-202.66934458,0.00011475,2]
[403220463,1769269953193,-230.5690254,0.00011475,2]
[403220464,1769269954706,-365.95735116,0.00011475,2]
[403220465,1769269958691,-264.96474424,0.00011475,2]
[403220466,1769269960459,-165.38514202,0.00011475,2]
[403220467,1769269961761,-255.99487451,0.00011475,2]
[403220468,1769269963454,-252.25343531,0.00011475,2]
[403220469,1769269966278,-245.70075882,0.00011475,2]
[403220471,1769269969711,-208.68743832,0.00011475,2]
[403220472,1769269971144,-252.42994815,0.00011475,2]
[403220474,1769269974305,-174.33941195,0.00011475,2]
[403220475,1769269976191,-289.93340482,0.00011475,2]
[403220476,1769269978719,-168.51961922,0.00011475,2]
[403220477,1769269980615,875.03121684,0.00011375,2]
[403220478,1769269981459,300.0,0.00011474,2]
[403220479,1769269983550,-302.09362044,0.00011475,2]
[403220480,1769269984841,-192.212083,0.00011475,2]
[403220481,1769269986667,-300.0,0.00011475,2]
[403220482,1769269986924,-5900.0069805,0.00011475,2]
[403220483,1769269987108,-10000.01,0.00011475,2]
[403220484,1769269987293,-10000.01,0.00011475,2]
[403220485,1769269987344,-10000.01,0.00011475,2]
[403220486,1769269987495,-10000.01,0.00011475,2]
[403220487,1769269987777,-10000.01,0.00011475,2]
[403220488,1769269988410,-10000.01,0.00011475,2]
[403220489,1769269988536,-10000.01,0.00011475,2]
[403220490,1769269989477,-10000.01,0.00011475,2]
[403220491,1769269989884,-10000.01,0.00011475,2]
[403220492,1769269990068,-10000.01,0.00011475,2]
[403220493,1769269990273,-10000.01,0.00011475,2]
[403220494,1769269990448,-10000.01,0.00011475,2]
[403220495,1769269991370,-155.37336821,0.00011475,2]
[403220496,1769269991984,-10000.01,0.00011475,2]
[403220497,1769269992319,-10000.01,0.00011475,2]
[403220498,1769269992899,-10000.01,0.00011475,2]
[403220499,1769269993152,-414.97887234,0.00011475,2]
[403220500,1769269993365,-10000.01,0.00011475,2]
[403220501,1769269993461,-10000.01,0.00011475,2]
[403220502,1769269993687,-10000.01,0.00011475,2]
[403220503,1769269993777,-10000.01,0.00011475,2]
[403220504,1769269993920,-10000.01,0.00011475,2]
[403220505,1769269994078,-10000.01,0.00011475,2]
[403220506,1769269994269,-10000.01,0.00011475,2]
[403220507,1769269994354,-325.99429222,0.00011475,2]
[403220508,1769269994405,-10000.01,0.00011475,2]
[403220509,1769269994585,-10000.01,0.00011475,2]
[403220510,1769269994727,-10000.01,0.00011475,2]
[403220511,1769269994880,-10000.01,0.00011475,2]
[403220512,1769269995037,-10000.01,0.00011475,2]
[403220513,1769269999836,-215.19509579,0.00011475,2]
[403220514,1769270000972,-268.49282929,0.00011474,2]
[403220515,1769270002453,-327.37123182,0.00011474,2]
[403220516,1769270004583,-207.85486689,0.00011474,2]
[403220517,1769270008201,-167.29847352,0.00011474,2]
[403220518,1769270012445,-228.98259848,0.00011474,2]
[403220519,1769270012478,-0.01180418,0.00011475,2]
[403220520,1769270014790,-300.0,0.00011475,2]
[403220521,1769270016471,-190.28,0.00011475,2]
[403220522,1769270021675,-231.50717071,0.00011475,2]
[403220523,1769270023095,-204.24807551,0.00011475,2]
[403220525,1769270027194,-197.90637956,0.00011475,2]
[403220526,1769270031269,-300.46683019,0.00011475,2]
[403220527,1769270032394,-211.005736,0.00011475,2]
[403220528,1769270034754,-692.79755332,0.00011475,2]
[403220529,1769270037890,-253.16067858,0.00011475,2]
[403220530,1769270041720,-222.33233815,0.00011475,2]
[403220531,1769270041799,300.0,0.00011474,2]
[403220532,1769270042658,150.0,0.00011474,2]
[403220533,1769270042915,246.0,0.00011474,2]
[403220534,1769270043093,-239.61449792,0.00011475,2]
[403220535,1769270043253,300.0,0.00011474,2]
[403220536,1769270043482,1355.262357,0.00011417,2]
[403220537,1769270046410,-190.32320089,0.00011475,2]
[403220538,1769270048132,-162.30962503,0.00011475,2]
[403220540,1769270054021,-311.02179637,0.00011475,2]
[403220541,1769270055909,814.579662,0.00011417,2]
[403220542,1769270056899,-230.01,0.00011475,2]
[403220543,1769270077772,6834.167981,0.00011375,2]
[403220544,1769270077825,10000.01,0.00011375,2]
[403220545,1769270077876,10000.01,0.00011375,2]
[403220546,1769270077930,6107.289419,0.00011375,2]
[403220547,1769270086316,1930.57546362,0.00011375,2]
[403220548,1769270101444,300.0,0.00011474,2]
[403220549,1769270101540,1200.0,0.00011474,2]
[403220550,1769270104969,6569.43453638,0.00011375,2]
[403220551,1769270105037,5678.58704113,0.00011375,2]
[403220553,1769270162809,514.59206558,0.00011474,2]
[403220554,1769270162888,164.89558838,0.00011474,2]
[403220555,1769270162974,211.91340349,0.00011474,2]
[403220556,1769270163059,500.0,0.00011474,2]
[403220557,1769270163316,500.0,0.00011474,2]
[403220558,1769270163444,500.0,0.00011474,2]
[403220559,1769270163735,393.5006716,0.00011474,2]
[403220560,1769270163823,486.85846475,0.00011474,2]
[403220561,1769270164338,500.0,0.00011474,2]
[403220562,1769270164623,500.0,0.00011474,2]